[Event "CZE-ch Youth G16 2022"]
[Site "Luhacovice"]
[Date "2022.03.17"]
[Round "7.2"]
[White "Sulcova, Tereza Radmila"]
[Black "Markova, Karolina"]
[Result "0-1"]
[ECO "B24"]
[WhiteElo "1555"]
[BlackElo "1589"]
[Annotator "NA"]
[PlyCount "90"]
[EventDate "2022.03.12"]
[EventType "swiss"]
[EventCountry "CZE"]
[SourceTitle "playchess.com"]
[Source "ChessBase"]
[SourceQuality "1"]
[TimeControl "40/5400+30:1800+30"]

1. e4 {[%emt 0:00:20]} c5 {[%emt 0:00:39]} 2. Nc3 {[%emt 0:00:20]} Nc6 {[%emt 0:00:20]} 3. g3 {[%emt 0:00:27]} g6 {[%emt 0:00:08]} 4. Bg2 {[%emt 0:00:06]} Bg7 {[%emt 0:00:06]} 5. d3 {[%emt 0:00:11]} e6 {[%emt 0:00:10]} 6. Be3 {[%emt 0:00:09]} d6 {[%emt 0:00:19]} 7. Qd2 {[%emt 0:00:09]} Nge7 {[%emt 0:00:32]} 8. Bh6 {[%emt 0:00:48]} O-O {[%emt 0:02:27]} 9. Nh3 {[%emt 0:01:56]} d5 {[%emt 0:02:56]} 10. Bxg7 {[%emt 0:05:43]} Kxg7 {[%emt 0:00:18]} 11. Qg5 {[%emt 0:03:13]} f6 {[%emt 0:05:16]} 12. Qc1 {[%emt 0:00:54]} d4 {[%emt 0:00:45]} 13. Ne2 {[%emt 0:01:50]} e5 {[%emt 0:01:58]} 14. O-O {[%emt 0:01:33]} Be6 {[%emt 0:03:11]} 15. f4 {[%emt 0:03:14]} Qd7 {[%emt 0:05:49]} 16. Nf2 {[%emt 0:02:24]} b5 {[%emt 0:01:42]} 17. h3 {[%emt 0:02:18]} c4 {[%emt 0:04:50]} 18. g4 {[%emt 0:01:30]} Bf7 {[%emt 0:11:06]} 19. h4 {[%emt 0:05:32]} h6 {[%emt 0:08:11]} 20. Ng3 {[%emt 0:09:44]} exf4 {[%emt 0:10:15]} 21. Qxf4 {[%emt 0:00:13]} Be6 {[%emt 0:01:02]} 22. Bh3 {[%emt 0:05:18]} Ne5 {[%emt 0:15:44]} 23. Kh2 {[%emt 0:08:15]} N7c6 {[%emt 0:01:21]} 24. a3 {[%emt 0:02:54]} a5 {[%emt 0:02:02]} 25. Rad1 {[%emt 0:04:18]} b4 {[%emt 0:02:23]} 26. Rg1 {[%emt 0:07:48]} Kh7 {[%emt 0:03:19]} 27. Nf1 {[%emt 0:05:22]} g5 {[%emt 0:02:42]} 28. Qg3 {[%emt 0:00:50]} gxh4 {[%emt 0:02:04]} 29. Qf4 {[%emt 0:00:58]} Qg7 {[%emt 0:01:06]} 30. axb4 {[%emt 0:02:10]} axb4 {[%emt 0:02:32]} 31. dxc4 {[%emt 0:01:58]} Bxc4 {[%emt 0:03:06]} 32. Nd3 {[%emt 0:02:24]} Qg5 {[%emt 0:01:36]} 33. Qf2 {[%emt 0:00:51]} b3 {[%emt 0:02:25]} 34. Nc5 {[%emt 0:02:57]} bxc2 {[%emt 0:00:28]} 35. Qxc2 {[%emt 0:00:28]} Ra5 {[%emt 0:03:46]} 36. Nd7 {[%emt 0:01:51]} Nxd7 {[%emt 0:00:50]} 37. Qxc4 {[%emt 0:00:13]} Nde5 {[%emt 0:00:18]} 38. Qe2 {[%emt 0:00:38]} Qf4+ {[%emt 0:00:34]} 39. Kg2 {[%emt 0:01:08]} d3 {[%emt 0:00:12]} 40. Rxd3 {[%emt 0:01:48]} Nxd3 {[%emt 0:00:20]} 41. Qxd3 {[%emt 0:30:02]} Ne5 {[%emt 0:30:47]} 42. Qc2 {[%emt 0:01:27]} Rfa8 {[%emt 0:00:00]} 43. Kh1 {[%emt 0:00:00]} Ra1 {[%emt 0:00:00]} 44. b4 {[%emt 0:00:00]} Rc1 {[%emt 0:00:00]} 45. Qe2 {[%emt 0:00:00]} Qf3+ {[%emt 0:00:00]} 0-1

[Event "CZE-ch Youth G16 2022"]
[Site "Luhacovice"]
[Date "2022.03.17"]
[Round "7.3"]
[White "Hosova, Sandra"]
[Black "Smajzrova, Dominika"]
[Result "1-0"]
[ECO "A03"]
[WhiteElo "1545"]
[BlackElo "1203"]
[Annotator "NA"]
[PlyCount "57"]
[EventDate "2022.03.12"]
[EventType "swiss"]
[EventCountry "CZE"]
[SourceTitle "playchess.com"]
[Source "ChessBase"]
[SourceQuality "1"]
[TimeControl "40/5400+30:1800+30"]

1. f4 {[%emt 0:00:17]} d5 {[%emt 0:03:23]} 2. Nf3 {[%emt 0:00:36]} Nf6 {[%emt 0:02:52]} 3. e3 {[%emt 0:01:02]} Nc6 {[%emt 0:08:08]} 4. Bb5 {[%emt 0:01:41]} Bd7 {[%emt 0:01:38]} 5. Bxc6 {[%emt 0:01:36]} Bxc6 {[%emt 0:00:35]} 6. O-O {[%emt 0:00:42]} e6 {[%emt 0:06:43]} 7. b3 {[%emt 0:02:36]} Bc5 {[%emt 0:04:07]} 8. Bb2 {[%emt 0:01:42]} Qe7 {[%emt 0:05:19]} 9. Qe1 {[%emt 0:04:42]} O-O-O {[%emt 0:02:55]} 10. Ne5 {[%emt 0:09:08]} Bb5 {[%emt 0:10:52]} 11. c4 {[%emt 0:03:18]} dxc4 {[%emt 0:01:13]} 12. bxc4 {[%emt 0:01:28]} Ba6 {[%emt 0:02:29]} 13. Nc3 {[%emt 0:10:04]} Nh5 {[%emt 0:09:28]} 14. Qe2 {[%emt 0:09:53]} f6 {[%emt 0:07:59]} 15. Qxh5 {[%emt 0:16:46]} fxe5 {[%emt 0:01:41]} 16. Ne4 {[%emt 0:03:36]} Bb4 {[%emt 0:10:27]} 17. Qe2 {[%emt 0:07:51]} exf4 {[%emt 0:03:53]} 18. Rxf4 {[%emt 0:01:58]} Qd7 {[%emt 0:03:19]} 19. Rd1 {[%emt 0:01:49]} Rhg8 {[%emt 0:02:38]} 20. Nc3 {[%emt 0:06:03]} Bxc3 {[%emt 0:01:31]} 21. Bxc3 {[%emt 0:00:19]} Qa4 {[%emt 0:00:14]} 22. d3 {[%emt 0:02:19]} Qd7 {[%emt 0:02:11]} 23. Bd4 {[%emt 0:04:19]} b6 {[%emt 0:01:03]} 24. Rdf1 {[%emt 0:00:49]} c5 {[%emt 0:01:31]} 25. Rf7 {[%emt 0:01:26]} Qd6 {[%emt 0:00:20]} 26. Rxa7 {[%emt 0:01:39]} Bxc4 {[%emt 0:01:06]} 27. dxc4 cxd4 {[%emt 0:00:28]} 28. Qf3 {[%emt 0:03:56]} Qb8 {[%emt 0:04:13]} 29. Qc6+ {[%emt 0:00:13]} 1-0

[Event "CZE-ch Youth G16 2022"]
[Site "Luhacovice"]
[Date "2022.03.17"]
[Round "7.4"]
[White "Nagyova, Daniela"]
[Black "Seda, Michaela"]
[Result "1-0"]
[ECO "C52"]
[WhiteElo "1623"]
[BlackElo "1364"]
[Annotator "NA"]
[PlyCount "41"]
[EventDate "2022.03.12"]
[EventType "swiss"]
[EventCountry "CZE"]
[SourceTitle "playchess.com"]
[Source "ChessBase"]
[SourceQuality "1"]
[TimeControl "40/5400+30:1800+30"]

1. e4 {[%emt 0:00:07]} e5 {[%emt 0:00:05]} 2. Nf3 {[%emt 0:00:09]} Nc6 {[%emt 0:00:07]} 3. Bc4 {[%emt 0:00:12]} Bc5 {[%emt 0:00:31]} 4. b4 {[%emt 0:00:24]} Bxb4 {[%emt 0:00:34]} 5. c3 {[%emt 0:00:11]} Ba5 {[%emt 0:00:38]} 6. d4 {[%emt 0:00:32]} exd4 {[%emt 0:00:32]} 7. O-O {[%emt 0:00:57]} d3 {[%emt 0:01:12]} 8. Qb3 {[%emt 0:04:31]} Qe7 {[%emt 0:02:46]} 9. Ba3 {[%emt 0:04:40]} d6 {[%emt 0:04:27]} 10. e5 {[%emt 0:03:52]} Nd8 {[%emt 0:08:41]} 11. exd6 {[%emt 0:16:26]} cxd6 {[%emt 0:00:36]} 12. Re1 {[%emt 0:02:39]} Be6 {[%emt 0:01:40]} 13. Nd4 {[%emt 0:03:04]} Bb6 {[%emt 0:02:47]} 14. Bxe6 {[%emt 0:04:32]} Nxe6 {[%emt 0:00:48]} 15. Nxe6 {[%emt 0:02:26]} Bxf2+ {[%emt 0:03:01]} 16. Kxf2 {[%emt 0:01:07]} Qh4+ {[%emt 0:00:48]} 17. Kf1 {[%emt 0:01:35]} Qxh2 {[%emt 0:02:39]} 18. Qa4+ {[%emt 0:04:14]} Ke7 {[%emt 0:00:41]} 19. Nf4+ {[%emt 0:01:07]} Kf6 {[%emt 0:01:48]} 20. Nd5+ {[%emt 0:01:25]} Kg5 {[%emt 0:01:22]} 21. Bc1+ {[%emt 0:00:48]} 1-0

[Event "CZE-ch Youth G16 2022"]
[Site "Luhacovice"]
[Date "2022.03.17"]
[Round "7.5"]
[White "Sehnoutkova, Laura"]
[Black "Nespora, Tatana"]
[Result "0-1"]
[ECO "A45"]
[WhiteElo "1126"]
[BlackElo "1452"]
[Annotator "NA"]
[PlyCount "56"]
[EventDate "2022.03.12"]
[EventType "swiss"]
[EventCountry "CZE"]
[SourceTitle "playchess.com"]
[Source "ChessBase"]
[SourceQuality "1"]
[TimeControl "40/5400+30:1800+30"]

1. d4 {[%emt 0:00:04]} Nf6 {[%emt 0:00:59]} 2. Bf4 {[%emt 0:00:21]} g6 {[%emt 0:01:32]} 3. e3 {[%emt 0:00:38]} Bg7 {[%emt 0:01:25]} 4. Nf3 {[%emt 0:00:53]} O-O {[%emt 0:01:05]} 5. Be2 {[%emt 0:01:55]} d6 {[%emt 0:01:32]} 6. h3 {[%emt 0:02:09]} b6 {[%emt 0:02:40]} 7. Nbd2 {[%emt 0:01:34]} Bb7 {[%emt 0:02:08]} 8. O-O {[%emt 0:03:43]} Nbd7 {[%emt 0:01:50]} 9. c3 {[%emt 0:03:54]} Ne8 {[%emt 0:08:09]} 10. Qc2 {[%emt 0:07:21]} e5 {[%emt 0:03:45]} 11. dxe5 {[%emt 0:06:33]} dxe5 {[%emt 0:01:20]} 12. Bg3 {[%emt 0:02:24]} Nd6 {[%emt 0:01:32]} 13. e4 {[%emt 0:07:10]} Qe7 {[%emt 0:03:38]} 14. Rfe1 {[%emt 0:06:02]} Kh8 {[%emt 0:02:53]} 15. Rad1 {[%emt 0:04:48]} Rae8 {[%emt 0:01:37]} 16. b4 {[%emt 0:10:47]} f5 {[%emt 0:05:30]} 17. exf5 {[%emt 0:07:03]} gxf5 {[%emt 0:00:24]} 18. Nc4 {[%emt 0:02:57]} f4 {[%emt 0:05:05]} 19. Bh4 {[%emt 0:06:07]} Bf6 {[%emt 0:01:15]} 20. Bxf6+ {[%emt 0:00:41]} Qxf6 {[%emt 0:00:20]} 21. Nxd6 {[%emt 0:00:51]} cxd6 {[%emt 0:00:42]} 22. Bb5 {[%emt 0:06:30]} Re7 {[%emt 0:01:42]} 23. Bxd7 {[%emt 0:02:01]} Rxd7 {[%emt 0:00:09]} 24. Nxe5 {[%emt 0:01:37]} Qg7 {[%emt 0:04:16]} 25. f3 {[%emt 0:04:31]} dxe5 {[%emt 0:01:26]} 26. Rxd7 {[%emt 0:01:54]} Qf7 27. Re7 Qxe7 {[%emt 0:00:44]} 28. Rxe5 {[%emt 0:02:44]} Qd7 {[%emt 0:01:20]} 0-1

[Event "CZE-ch Youth G16 2022"]
[Site "Luhacovice"]
[Date "2022.03.17"]
[Round "7.6"]
[White "Sargsyan, Anna B."]
[Black "Havelkova, Beata"]
[Result "0-1"]
[ECO "B43"]
[WhiteElo "1602"]
[BlackElo "1666"]
[Annotator "NA"]
[PlyCount "89"]
[EventDate "2022.03.12"]
[EventType "swiss"]
[EventCountry "CZE"]
[SourceTitle "playchess.com"]
[Source "ChessBase"]
[SourceQuality "1"]
[TimeControl "40/5400+30:1800+30"]

1. e4 {[%emt 0:00:02]} c5 {[%emt 0:00:05]} 2. Nf3 {[%emt 0:00:17]} e6 {[%emt 0:00:10]} 3. d4 {[%emt 0:00:38]} cxd4 {[%emt 0:00:09]} 4. Nxd4 {[%emt 0:00:18]} a6 {[%emt 0:00:10]} 5. Nc3 {[%emt 0:00:49]} Qc7 {[%emt 0:00:10]} 6. Bd2 {[%emt 0:01:23]} Bc5 {[%emt 0:02:44]} 7. Be3 {[%emt 0:04:13]} Bb4 {[%emt 0:01:11]} 8. Qd2 {[%emt 0:03:24]} Nf6 {[%emt 0:00:50]} 9. Bd3 {[%emt 0:02:00]} d5 {[%emt 0:00:30]} 10. exd5 {[%emt 0:02:30]} Nxd5 {[%emt 0:01:21]} 11. Nde2 {[%emt 0:01:56]} Nxe3 {[%emt 0:03:34]} 12. Qxe3 {[%emt 0:02:43]} Nc6 {[%emt 0:03:30]} 13. Qg3 {[%emt 0:02:52]} Qxg3 {[%emt 0:01:28]} 14. hxg3 {[%emt 0:01:49]} b6 {[%emt 0:03:02]} 15. a3 {[%emt 0:02:48]} Bd6 {[%emt 0:07:22]} 16. O-O-O {[%emt 0:01:15]} Ke7 {[%emt 0:01:26]} 17. Kb1 {[%emt 0:04:23]} Bb7 {[%emt 0:01:32]} 18. Be4 {[%emt 0:02:10]} f5 {[%emt 0:02:28]} 19. Bf3 {[%emt 0:02:00]} Rac8 {[%emt 0:07:20]} 20. Nd4 {[%emt 0:02:12]} Bc5 {[%emt 0:06:50]} 21. Nxc6+ {[%emt 0:00:25]} Bxc6 {[%emt 0:00:13]} 22. Bxc6 {[%emt 0:00:24]} Rxc6 {[%emt 0:00:11]} 23. f3 {[%emt 0:00:49]} h6 {[%emt 0:08:05]} 24. b4 {[%emt 0:01:07]} Bf2 {[%emt 0:02:30]} 25. Ne2 {[%emt 0:01:29]} Rhc8 {[%emt 0:00:56]} 26. Rhf1 {[%emt 0:01:24]} Be3 {[%emt 0:00:56]} 27. c3 {[%emt 0:04:08]} Bg5 {[%emt 0:02:37]} 28. f4 {[%emt 0:00:57]} Bf6 {[%emt 0:00:08]} 29. Rc1 {[%emt 0:03:18]} Bxc3 {[%emt 0:00:32]} 30. Nxc3 Rxc3 {[%emt 0:00:09]} 31. Kb2 {[%emt 0:01:20]} Rxc1 {[%emt 0:00:55]} 32. Rxc1 {[%emt 0:00:06]} Rxc1 {[%emt 0:00:05]} 33. Kxc1 {[%emt 0:00:03]} e5 {[%emt 0:00:34]} 34. fxe5 {[%emt 0:00:12]} Ke6 {[%emt 0:00:24]} 35. Kd2 {[%emt 0:00:35]} Kxe5 {[%emt 0:00:20]} 36. Ke3 {[%emt 0:00:14]} b5 {[%emt 0:00:49]} 37. Kf3 {[%emt 0:01:25]} Kd4 {[%emt 0:00:30]} 38. Kf4 {[%emt 0:00:23]} g6 {[%emt 0:03:00]} 39. g4 {[%emt 0:00:17]} fxg4 {[%emt 0:00:06]} 40. Kxg4 {[%emt 0:00:10]} Kc4 {[%emt 0:00:44]} 41. Kf4 {[%emt 0:30:25]} Kb3 {[%emt 0:30:26]} 42. g4 {[%emt 0:00:20]} h5 {[%emt 0:01:42]} 43. g5 {[%emt 0:00:34]} Kxa3 {[%emt 0:00:12]} 44. Ke5 {[%emt 0:00:17]} h4 {[%emt 0:00:06]} 45. Kd4 0-1

[Event "CZE-ch Youth G16 2022"]
[Site "Luhacovice"]
[Date "2022.03.18"]
[Round "8.1"]
[White "Havelkova, Beata"]
[Black "Voriskova, Anna"]
[Result "0-1"]
[ECO "B12"]
[WhiteElo "1666"]
[BlackElo "1812"]
[Annotator "NA"]
[PlyCount "64"]
[EventDate "2022.03.12"]
[EventType "swiss"]
[EventCountry "CZE"]
[SourceTitle "playchess.com"]
[Source "ChessBase"]
[SourceQuality "1"]
[TimeControl "40/5400+30:1800+30"]

1. e4 c6 2. d4 d5 3. e5 Bf5 4. Nf3 Bc8 {[%emt 0:01:33]} 5. Ng1 {[%emt 0:01:43]} Bf5 {[%emt 0:00:54]} 6. Nf3 {[%emt 0:00:32]} e6 {[%emt 0:03:44]} 7. Be2 {[%emt 0:00:41]} c5 {[%emt 0:02:14]} 8. O-O {[%emt 0:03:00]} Nc6 {[%emt 0:02:32]} 9. c3 {[%emt 0:01:34]} Bg6 {[%emt 0:03:20]} 10. Nbd2 {[%emt 0:09:02]} cxd4 {[%emt 0:07:38]} 11. cxd4 {[%emt 0:00:18]} Nge7 {[%emt 0:06:09]} 12. a3 {[%emt 0:06:14]} Nf5 {[%emt 0:00:34]} 13. g4 {[%emt 0:07:42]} Nfxd4 {[%emt 0:15:10]} 14. Nxd4 {[%emt 0:00:13]} Nxd4 {[%emt 0:00:08]} 15. Qa4+ {[%emt 0:00:17]} Nc6 {[%emt 0:00:03]} 16. Nf3 {[%emt 0:02:11]} Bc5 {[%emt 0:10:45]} 17. Bb5 {[%emt 0:16:09]} Rc8 {[%emt 0:05:51]} 18. Bg5 {[%emt 0:01:17]} Be7 {[%emt 0:08:56]} 19. Bxe7 {[%emt 0:02:46]} Qxe7 {[%emt 0:00:26]} 20. Nd4 {[%emt 0:02:47]} O-O {[%emt 0:01:11]} 21. Bxc6 {[%emt 0:05:07]} bxc6 {[%emt 0:00:11]} 22. Nxc6 {[%emt 0:00:31]} Qg5 {[%emt 0:03:56]} 23. h3 {[%emt 0:01:50]} h5 {[%emt 0:02:53]} 24. Rac1 {[%emt 0:06:18]} Be4 {[%emt 0:04:41]} 25. Rc3 {[%emt 0:04:03]} d4 {[%emt 0:05:09]} 26. Nxd4 {[%emt 0:09:09]} Rxc3 {[%emt 0:00:12]} 27. bxc3 {[%emt 0:00:03]} hxg4 {[%emt 0:00:45]} 28. Nxe6 {[%emt 0:00:53]} fxe6 {[%emt 0:00:43]} 29. Qxe4 {[%emt 0:00:20]} gxh3+ {[%emt 0:01:51]} 30. Kh2 {[%emt 0:01:26]} Rf4 {[%emt 0:00:55]} 31. Qa8+ {[%emt 0:01:08]} Kh7 {[%emt 0:00:21]} 32. Qh1 {[%emt 0:02:57]} Qxe5 {[%emt 0:00:56]} 0-1

[Event "CZE-ch Youth G16 2022"]
[Site "Luhacovice"]
[Date "2022.03.18"]
[Round "8.2"]
[White "Nespora, Tatana"]
[Black "Hosova, Sandra"]
[Result "1/2-1/2"]
[ECO "B01"]
[WhiteElo "1452"]
[BlackElo "1545"]
[Annotator "NA"]
[PlyCount "79"]
[EventDate "2022.03.12"]
[EventType "swiss"]
[EventCountry "CZE"]
[SourceTitle "playchess.com"]
[Source "ChessBase"]
[SourceQuality "1"]
[TimeControl "40/5400+30:1800+30"]

1. e4 {[%emt 0:00:38]} d5 {[%emt 0:00:23]} 2. exd5 {[%emt 0:01:40]} Qxd5 {[%emt 0:00:35]} 3. Nc3 {[%emt 0:03:10]} Qd6 {[%emt 0:00:37]} 4. d4 {[%emt 0:04:59]} c6 {[%emt 0:00:26]} 5. Bc4 {[%emt 0:01:43]} Nf6 {[%emt 0:01:38]} 6. Bb3 {[%emt 0:06:36]} Bf5 {[%emt 0:03:55]} 7. f3 {[%emt 0:10:03]} e6 {[%emt 0:01:49]} 8. Nge2 {[%emt 0:04:26]} Qc7 {[%emt 0:04:40]} 9. Ng3 {[%emt 0:03:24]} Bg6 {[%emt 0:02:07]} 10. Nce4 {[%emt 0:02:28]} Nbd7 {[%emt 0:07:21]} 11. c3 {[%emt 0:03:13]} h6 {[%emt 0:05:31]} 12. Bc2 {[%emt 0:01:49]} Nd5 {[%emt 0:11:55]} 13. Nf2 {[%emt 0:13:59]} f5 {[%emt 0:10:31]} 14. Qe2 {[%emt 0:02:42]} O-O-O {[%emt 0:03:35]} 15. Nd3 {[%emt 0:03:37]} Bd6 {[%emt 0:03:04]} 16. Qf2 {[%emt 0:04:10]} Rde8 {[%emt 0:05:01]} 17. O-O {[%emt 0:01:24]} Bf7 {[%emt 0:04:04]} 18. c4 {[%emt 0:02:35]} N5f6 {[%emt 0:16:29]} 19. c5 {[%emt 0:01:46]} Bxg3 {[%emt 0:02:45]} 20. hxg3 {[%emt 0:00:20]} Nd5 {[%emt 0:05:51]} 21. Nf4 {[%emt 0:02:03]} N7f6 {[%emt 0:02:57]} 22. Rb1 {[%emt 0:06:20]} g5 {[%emt 0:01:47]} 23. Nxd5 {[%emt 0:00:21]} Nxd5 {[%emt 0:00:28]} 24. f4 {[%emt 0:04:45]} gxf4 {[%emt 0:01:22]} 25. Bxf4 {[%emt 0:00:09]} Nxf4 {[%emt 0:00:18]} 26. gxf4 {[%emt 0:00:22]} Reg8 {[%emt 0:01:05]} 27. b4 {[%emt 0:00:55]} Rg7 {[%emt 0:02:07]} 28. Bd1 {[%emt 0:02:26]} h5 {[%emt 0:00:29]} 29. Bf3 {[%emt 0:00:18]} Qxf4 {[%emt 0:01:14]} 30. b5 {[%emt 0:00:45]} Be8 {[%emt 0:00:24]} 31. Qb2 {[%emt 0:00:33]} Qc7 {[%emt 0:00:55]} 32. a4 {[%emt 0:02:19]} h4 {[%emt 0:00:17]} 33. Rf2 {[%emt 0:00:48]} h3 {[%emt 0:00:30]} 34. Qe2 {[%emt 0:00:59]} Bf7 {[%emt 0:00:47]} 35. Qe5 {[%emt 0:01:06]} Qxe5 {[%emt 0:00:28]} 36. dxe5 {[%emt 0:00:06]} hxg2 {[%emt 0:00:25]} 37. Rxg2 {[%emt 0:00:13]} Rxg2+ {[%emt 0:00:14]} 38. Kxg2 {[%emt 0:00:10]} Be8 {[%emt 0:00:25]} 39. Kg3 {[%emt 0:03:31]} Rh7 {[%emt 0:00:55]} 40. Rb4 {[%emt 0:02:19]} 1/2-1/2

[Event "CZE-ch Youth G16 2022"]
[Site "Luhacovice"]
[Date "2022.03.18"]
[Round "8.3"]
[White "Markova, Karolina"]
[Black "Mullerova, Karina Nela"]
[Result "1/2-1/2"]
[ECO "C00"]
[WhiteElo "1589"]
[BlackElo "1250"]
[Annotator "NA"]
[PlyCount "74"]
[EventDate "2022.03.12"]
[EventType "swiss"]
[EventCountry "CZE"]
[SourceTitle "playchess.com"]
[Source "ChessBase"]
[SourceQuality "1"]
[TimeControl "40/5400+30:1800+30"]

1. e4 {[%emt 0:00:04]} e6 {[%emt 0:00:07]} 2. d4 {[%emt 0:00:13]} b6 {[%emt 0:00:10]} 3. Nc3 {[%emt 0:01:52]} Bb4 {[%emt 0:01:48]} 4. Bd2 {[%emt 0:00:53]} Bb7 {[%emt 0:01:08]} 5. f3 {[%emt 0:02:52]} d5 {[%emt 0:02:39]} 6. exd5 {[%emt 0:02:52]} exd5 {[%emt 0:02:52]} 7. Qe2+ {[%emt 0:02:24]} Qe7 {[%emt 0:02:03]} 8. a3 {[%emt 0:01:07]} Bxc3 {[%emt 0:02:13]} 9. Bxc3 {[%emt 0:01:57]} Ba6 {[%emt 0:07:13]} 10. Qxe7+ {[%emt 0:00:54]} Nxe7 {[%emt 0:00:05]} 11. Bxa6 {[%emt 0:00:44]} Nxa6 {[%emt 0:00:06]} 12. O-O-O {[%emt 0:00:33]} O-O {[%emt 0:00:09]} 13. Ne2 {[%emt 0:00:57]} Rfe8 {[%emt 0:05:13]} 14. Nf4 {[%emt 0:01:38]} c6 {[%emt 0:03:20]} 15. Rhe1 {[%emt 0:05:07]} Nf5 {[%emt 0:02:24]} 16. g4 {[%emt 0:06:54]} Ne3 {[%emt 0:04:20]} 17. Rd2 {[%emt 0:04:03]} Nc4 {[%emt 0:01:32]} 18. Rde2 {[%emt 0:00:44]} Nd6 {[%emt 0:03:56]} 19. Nd3 {[%emt 0:07:48]} Rxe2 {[%emt 0:02:48]} 20. Rxe2 {[%emt 0:00:18]} Re8 {[%emt 0:00:05]} 21. Rxe8+ {[%emt 0:02:31]} Nxe8 {[%emt 0:00:06]} 22. Ne5 {[%emt 0:00:20]} Nb8 {[%emt 0:01:32]} 23. Kd2 {[%emt 0:02:58]} f6 {[%emt 0:06:32]} 24. Nd3 {[%emt 0:00:11]} a5 {[%emt 0:01:30]} 25. Ke3 {[%emt 0:01:19]} g5 {[%emt 0:02:19]} 26. Be1 {[%emt 0:01:17]} Nd7 {[%emt 0:00:42]} 27. h4 {[%emt 0:04:08]} h6 {[%emt 0:03:27]} 28. Bg3 {[%emt 0:03:53]} Kf7 {[%emt 0:02:35]} 29. f4 {[%emt 0:04:38]} Ke6 {[%emt 0:05:32]} 30. b3 {[%emt 0:04:50]} b5 {[%emt 0:01:13]} 31. c3 {[%emt 0:02:40]} Ke7 {[%emt 0:02:22]} 32. Nb2 {[%emt 0:02:31]} Nb6 {[%emt 0:00:52]} 33. fxg5 {[%emt 0:06:02]} fxg5 {[%emt 0:01:22]} 34. Nd3 {[%emt 0:07:35]} Nd7 {[%emt 0:00:23]} 35. hxg5 {[%emt 0:02:32]} hxg5 {[%emt 0:00:11]} 36. Ne5 {[%emt 0:01:06]} Nxe5 {[%emt 0:01:30]} 37. dxe5 {[%emt 0:00:39]} Nc7 {[%emt 0:00:54]} 1/2-1/2

[Event "CZE-ch Youth G16 2022"]
[Site "Luhacovice"]
[Date "2022.03.18"]
[Round "8.4"]
[White "Nagyova, Daniela"]
[Black "Sulcova, Tereza Radmila"]
[Result "1-0"]
[ECO "B01"]
[WhiteElo "1623"]
[BlackElo "1555"]
[Annotator "NA"]
[PlyCount "55"]
[EventDate "2022.03.12"]
[EventType "swiss"]
[EventCountry "CZE"]
[SourceTitle "playchess.com"]
[Source "ChessBase"]
[SourceQuality "1"]
[TimeControl "40/5400+30:1800+30"]

1. e4 d5 2. exd5 Nf6 3. Nc3 Nxd5 4. d4 Nxc3 5. bxc3 Bf5 6. Bc4 {[%emt 0:13:25]} e6 {[%emt 0:06:39]} 7. Nf3 {[%emt 0:02:00]} Nc6 {[%emt 0:03:49]} 8. Bb2 {[%emt 0:06:02]} Be7 {[%emt 0:04:51]} 9. Qd2 {[%emt 0:02:59]} a6 {[%emt 0:05:59]} 10. Bb3 {[%emt 0:03:37]} O-O {[%emt 0:05:11]} 11. h3 {[%emt 0:05:17]} Be4 {[%emt 0:07:54]} 12. Qf4 {[%emt 0:05:01]} Bxf3 {[%emt 0:04:44]} 13. Qxf3 {[%emt 0:00:50]} Bf6 {[%emt 0:04:44]} 14. O-O {[%emt 0:07:41]} Re8 {[%emt 0:01:31]} 15. Rad1 {[%emt 0:02:18]} Qe7 {[%emt 0:04:53]} 16. Ba4 {[%emt 0:03:53]} Qd6 {[%emt 0:03:00]} 17. c4 {[%emt 0:05:17]} Qb4 {[%emt 0:02:16]} 18. Qb3 {[%emt 0:04:14]} Qxb3 {[%emt 0:04:32]} 19. axb3 {[%emt 0:02:01]} Red8 {[%emt 0:00:26]} 20. Bxc6 {[%emt 0:02:43]} bxc6 {[%emt 0:00:03]} 21. c5 {[%emt 0:10:22]} Rab8 {[%emt 0:01:54]} 22. Rd3 {[%emt 0:01:32]} a5 {[%emt 0:01:14]} 23. Ra1 {[%emt 0:01:23]} Rb5 {[%emt 0:00:21]} 24. Bc3 {[%emt 0:03:02]} Rxc5 {[%emt 0:05:14]} 25. dxc5 {[%emt 0:01:40]} Rxd3 {[%emt 0:00:07]} 26. Bxf6 {[%emt 0:01:46]} Rd2 {[%emt 0:00:36]} 27. Be5 {[%emt 0:01:16]} Rxc2 {[%emt 0:00:08]} 28. Rxa5 {[%emt 0:00:24]} 1-0

[Event "CZE-ch Youth G16 2022"]
[Site "Luhacovice"]
[Date "2022.03.18"]
[Round "8.6"]
[White "Smajzrova, Dominika"]
[Black "Macova, Marketa"]
[Result "1-0"]
[ECO "C42"]
[WhiteElo "1203"]
[BlackElo "1224"]
[Annotator "NA"]
[PlyCount "69"]
[EventDate "2022.03.12"]
[EventType "swiss"]
[EventCountry "CZE"]
[SourceTitle "playchess.com"]
[Source "ChessBase"]
[SourceQuality "1"]
[TimeControl "40/5400+30:1800+30"]

1. e4 {[%emt 0:00:02]} e5 {[%emt 0:00:05]} 2. Nf3 {[%emt 0:00:12]} Nf6 {[%emt 0:00:07]} 3. Nc3 {[%emt 0:01:22]} Bc5 {[%emt 0:00:33]} 4. Nxe5 {[%emt 0:01:49]} Nc6 {[%emt 0:00:49]} 5. Nxc6 {[%emt 0:01:50]} dxc6 {[%emt 0:00:24]} 6. h3 {[%emt 0:03:18]} Qd4 {[%emt 0:02:55]} 7. Qe2 {[%emt 0:00:48]} Be6 {[%emt 0:05:38]} 8. d3 {[%emt 0:04:46]} b5 {[%emt 0:10:42]} 9. Be3 {[%emt 0:01:50]} Qd6 {[%emt 0:01:42]} 10. Bxc5 {[%emt 0:01:09]} Qxc5 {[%emt 0:00:10]} 11. Qd2 {[%emt 0:13:06]} Rd8 {[%emt 0:02:45]} 12. Ne2 {[%emt 0:03:07]} Nxe4 {[%emt 0:03:50]} 13. Qf4 {[%emt 0:03:15]} Nd6 {[%emt 0:04:48]} 14. Nd4 {[%emt 0:02:43]} O-O {[%emt 0:07:36]} 15. Rc1 {[%emt 0:12:41]} Qb4+ {[%emt 0:07:05]} 16. c3 {[%emt 0:01:57]} Qxb2 {[%emt 0:02:42]} 17. Nxc6 {[%emt 0:01:13]} Ra8 {[%emt 0:01:38]} 18. Be2 {[%emt 0:06:08]} Qxa2 {[%emt 0:05:49]} 19. Bf3 {[%emt 0:01:42]} Rae8 {[%emt 0:04:54]} 20. O-O {[%emt 0:01:22]} Bd5 {[%emt 0:03:43]} 21. Nb4 {[%emt 0:02:46]} Qa4 {[%emt 0:03:45]} 22. Nxd5 {[%emt 0:03:28]} Qxf4 {[%emt 0:04:39]} 23. Nxf4 {[%emt 0:00:14]} a5 {[%emt 0:00:52]} 24. Nd5 {[%emt 0:03:19]} c5 {[%emt 0:02:27]} 25. Nb6 {[%emt 0:00:59]} Re7 {[%emt 0:02:07]} 26. Ra1 {[%emt 0:01:55]} Ra7 {[%emt 0:02:25]} 27. Rfe1 {[%emt 0:02:05]} Re8 {[%emt 0:02:07]} 28. Rxe8+ {[%emt 0:02:15]} Nxe8 {[%emt 0:00:11]} 29. Re1 {[%emt 0:00:33]} Kf8 {[%emt 0:02:00]} 30. Bc6 {[%emt 0:00:45]} Nd6 {[%emt 0:01:02]} 31. Nc8 {[%emt 0:01:07]} Rc7 {[%emt 0:05:45]} 32. Nxd6 {[%emt 0:00:31]} Re7 {[%emt 0:00:42]} 33. Rxe7 {[%emt 0:00:09]} Kxe7 {[%emt 0:00:07]} 34. Nxb5 {[%emt 0:00:12]} a4 {[%emt 0:00:49]} 35. Na3 {[%emt 0:00:17]} 1-0